{"text_format":"1","workbook":"xlsx","n_sheets":14,"sheets":["Cover","Info","Results","E01","E02","E03","E04","E05","E06","E07","E08","E09","E10","About"],"not_rendered":{"charts":10,"images":46,"macros":1,"external_links":0,"defined_names":15,"comments":0,"pivot_tables":0},"unopened":[],"bounds":{"document_bytes":16777216,"sheet_cells":100000,"rows_first":2000,"rows_last":500,"rows_between":2000,"halvings":0,"cell_chars":16384,"cell_head_chars":4096},"cells_cut":0,"cells_raw":0,"read":"whole","date_system":"1900"}

{"sheet":"Cover","index":0,"n_rows":0,"n_cols":0,"rows_kept":0,"cut":false,"hidden":false,"merged":[]}

{"sheet":"Info","index":1,"n_rows":49,"n_cols":4,"rows_kept":49,"cut":false,"hidden":false,"merged":[[0,0,0,16383],[49,1,49,3],[2,1,2,2],[3,1,3,2],[4,1,4,2],[5,1,5,2],[6,1,6,2],[39,1,39,2],[40,1,40,2],[41,1,41,2],[42,1,42,2],[43,1,43,2],[45,1,45,3],[46,1,46,3]]}
[]
[]
[null,"This Assessment",null,"Jawaban"]
[null,"Nama Kabupaten/Kota"]
[null,"Tipe kota (kabupaten, metropolitan, dll)"]
[null,"Negara"]
[null,"Tanggal penilaian"]
[]
[null,"Profil Kota (Wajib Diisi)","Jawaban","Sumber Data"]
[null,"Jabatan tertinggi Kepala Daerah (misalnya Walikota atau Bupati)"]
[null,"Populas:   "]
[null,"Luas Wilayah dalam kilometer persegi:"]
[null,"Kepadatan penduduk (penduduk per kilometer persegi): "]
[null,"Populasi anak muda (usia 15-24) (%):"]
[null,"Lansia (65+) (%):"]
[null,"Keluarga yang dikepalai oleh perempuan (janda):"]
[null,"Jumlah masyarakat dengan kemampuan baca tulis (% literate population):"]
[null,"Tingkat kemiskinan (% population not in poverty):"]
[null,"Rerata Pendapatan Per Keluarga (USD):"]
[null,"Masyarakat yang bukan WNI (%):"]
[null,"Risiko yang sering terjadi (jenis bencana): "]
[null,"Risiko yang paling merugikan (jenis bencana): "]
[]
[null,"Profil Kota","Jumlah dan/atau persentase jumlah penduduk","Sumber Informasi"]
[null,"Populasi penyandang disabilitas (perkiraan prevalensi)"]
[null,"Informasi dipilah berdasarkan pendapatan (di bawah garis kemiskinan)"]
[null,"Informasi dipilah berdasarkan jenis kelamin"]
[null,"Informasi dipilah berdasarkan usia"]
[null,"Informasi dipilah berdasarkan jenis disabilitas (gangguan fisik, gangguan sensorik, gangguan kognitif, gangguan intelektual, penyakit mental, dan beberapa bentuk penyakit kronis)"]
[null,"Informasi dipilah berdasarkan lingkungan"]
[]
[null,"Profil Kota (Tidak Wajib Diisi)","Jawaban","Sumber Data"]
[null,"Jumlah Seluruh Kepala Keluarga: "]
[null,"Jumlah Orang per Unit:"]
[null,"Biaya Hidup (USD):"]
[null,"GDP Negara per capita (USD)"]
[null,"Koefisien Ginit:"]
[null,"Produk kabupaten per kapita (USD):"]
[]
[null,"Tim Pengurangan Risiko dan Pengurangan Risiko Bencana Pemerintah Daerah",null,"Jawaban"]
[null,"Nama penilaian orang terkemuka:"]
[null,"Organization: "]
[null,"Detail kontak"]
[null,"Kesediaan untuk berbagi hasil atau digunakan sebagai studi kasus oleh UNISDR dan mitra:"]
[]
[null,"   Situasi penyandang disabilitas di pemerintah kota/daerah"]
[]
[]
[null,"   Informasi pemangku kepentingan"]

{"sheet":"Results","index":2,"n_rows":145,"n_cols":13,"rows_kept":145,"cut":false,"hidden":false,"merged":[[34,2,34,5],[83,2,83,5],[41,2,41,5],[42,2,42,5],[49,2,49,5],[56,2,56,5],[54,3,54,6],[39,3,39,6],[62,3,62,6],[67,3,67,6],[73,3,73,6],[69,2,69,5],[70,2,70,5],[64,2,64,5],[58,2,58,5],[57,2,57,5],[59,2,59,5],[35,2,35,5],[104,1,104,3],[88,2,88,5],[95,2,95,5],[96,2,96,5],[102,1,102,2],[86,3,86,5],[93,3,93,6],[89,2,89,5],[90,2,90,5],[75,2,75,5],[76,2,76,5],[47,3,47,6],[81,3,81,6]]}
[]
[]
[]
[]
[null,{"$f":"Info!B4&IF(Info!D4=\"\",\"\",Info!D4)","v":"Nama Kabupaten/Kota"}]
[]
[null,{"$f":"Info!B6&IF(Info!D6=\"\",\"\",Info!D6)","v":"Negara"}]
[]
[null,{"$f":"Info!B7&IF(Info!D7=\"\",\"\",Info!D7)","v":"Tanggal penilaian"}]
[]
[]
[]
[]
[]
[]
[]
[]
[]
[]
[]
[]
[]
[]
[]
[]
[]
[]
[]
[]
[]
[]
[]
[null,"Esensial 01: ",null,{"$f":"D109","v":"Pengaturan Resiliensi - Keinklusifan penyandang disabilitas dalam tata kelola risiko bencana"}]
[]
[null,{"$f":"C121","v":"Q 1.1"},{"$f":"E121","v":"Tidak Meninggalkan Siapa pun"},null,null,null,{"$f":"F121","v":0}]
[null,{"$f":"C122","v":"Q 1.2"},{"$f":"E122","v":"Organisasi, Koordinasi, dan Partisipasi"},null,null,null,{"$f":"F122","v":0}]
[]
[]
[]
[null,"Esensial 02: ",null,{"$f":"D110","v":"Pengidentifikasian, Pemahaman, dan Penggunaan Skenario Risiko Masa Kini dan Masa Depan - Inklusif penyandang disabilitas dalam skenario risiko bencana"}]
[]
[null,{"$f":"C123","v":"Q 2.1"},{"$f":"E123","v":"Desain Analisis dan Skenario Risiko Inklusif Disabilitas"},null,null,null,{"$f":"F123","v":0}]
[null,{"$f":"C124","v":"Q 2.2"},{"$f":"E124","v":"Efek Bertingkat"},null,null,null,{"$f":"F124","v":0}]
[]
[]
[]
[]
[null,"Esensial 03: ",null,{"$f":"D111","v":"Penguatan Kapasitas Finansial untuk Resiliensi - Inklusif penyandang disabilitas dalam mekanisme finansial"}]
[]
[null,{"$f":"C125","v":"Q 3.1"},{"$f":"E125","v":"Mekanisme Finansial Inklusif"},null,null,null,{"$f":"F125","v":0}]
[]
[]
[]
[]
[null,"Esensial 04: ",null,{"$f":"D112","v":"Mengejar Pembangunan Perkotaan yang Tangguh - Keinklusifan penyandang disabilitas dalam peraturan penggunaan lahan/bangunan"}]
[]
[null,{"$f":"C126","v":"Q 4.1"},{"$f":"E126","v":"Desain Kota Resiliensi yang Inklusif"},null,null,null,{"$f":"F126","v":0}]
[null,{"$f":"C127","v":"Q 4.2"},{"$f":"E127","v":"Kode dan Standar Bangunan"},null,null,null,{"$f":"F127","v":0}]
[null,{"$f":"C128","v":"Q 4.3"},{"$f":"E128","v":"Kode dan Standar Bangunan"},null,null,null,{"$f":"F128","v":0}]
[null,{"$f":"C129","v":"Q 4.4"},{"$f":"E129","v":"Menghapus Penghalang Lingkungan"},null,null,null,{"$f":"F129","v":0}]
[]
[]
[null,"Esensial 05: ",null,{"$f":"D113","v":"Penyangga Keamanan Alami untuk Meningkatkan Fungsi Perlindungan yang Ditawarkan oleh Ekosistem Alam - Pengelolaan jasa ekosistem dengan mempertimbangkan penyandang disabilitas"}]
[]
[null,null,"-- no question --"]
[]
[]
[null,"Esensial 06: ",null,{"$f":"D114","v":"Penguatan Kapasitas Lembaga untuk Resiliensi - Inklusif penyandang disabilitas dalam kapasitas kelembagaan"}]
[]
[null,{"$f":"C130","v":"Q 6.1"},{"$f":"E130","v":"Peningkatan Kapasitas dan Inklusif untuk Resiliensi"},null,null,null,{"$f":"F130","v":0}]
[null,{"$f":"C131","v":"Q 6.2"},{"$f":"E131","v":"Bahasa yang Dapat Diakses"},null,null,null,{"$f":"F131","v":0}]
[]
[]
[null,"Esensial 07: ",null,{"$f":"D115","v":"Pemahaman dan Penguatan Kapasitas Sosial untuk Resiliensi - Inklusif penyandang disabilitas dalam kapasitas masyarakat"}]
[]
[null,{"$f":"C132","v":"Q 7.1"},{"$f":"E132","v":"Partisipasi Aktif Organisasi terhadap Penyandang Disabilitas"},null,null,null,{"$f":"F132","v":0}]
[null,{"$f":"C133","v":"Q 7.2"},{"$f":"E133","v":"Peningkatan Kapasitas Dari dan Untuk Organisasi Penyandang Disabilitas"},null,null,null,{"$f":"F133","v":0}]
[]
[]
[]
[]
[null,"Esensial 08: ",null,{"$f":"D116","v":"Penguatan Resiliensi Infrastuktur - Inklusif penyandang disabilitas dalam resiliensi infrastruktur"}]
[]
[null,{"$f":"C134","v":"Q 8.1"},{"$f":"E134","v":"Perlindungan dari Kekerasan"},null,null,null,{"$f":"F134","v":0}]
[]
[]
[null,"Esensial 09: ",null,{"$f":"D117","v":"Memastikan Tanggap Bencana yang Efektif - Inklusif penyandang disabilitas dalam tanggap atau respons bencana"}]
[]
[null,{"$f":"C135","v":"Q 9.1"},{"$f":"E135","v":"Pendeteksian, Pemantauan, dan Peringatan Dini"},null,null,null,{"$f":"F135","v":0}]
[null,{"$f":"C136","v":"Q 9.2"},{"$f":"E136","v":"Pelatihan"},null,null,null,{"$f":"F136","v":0}]
[null,{"$f":"C137","v":"Q 9.3"},{"$f":"E137","v":"Pengkampanyean Kesadaran dan Pelatihan Multi-Skenario"},null,null,null,{"$f":"F137","v":0}]
[]
[]
[null,"Esensial 10: ",null,{"$f":"D118","v":"Percepatan Pemulihan dan Pembangunan Kembali yang Lebih Baik - Inklusif penyandang disabilitas dalam pemulihan atau pembangunan kembali dengan lebih baik"}]
[]
[null,{"$f":"C138","v":"Q 10.1"},{"$f":"E138","v":"Rekonstruksi dan Rehabilitasi yang Inklusif"},null,null,null,{"$f":"F138","v":0}]
[null,{"$f":"C139","v":"Q 10.2"},{"$f":"E139","v":"Kompilasi Pembelajaran"},null,null,null,{"$f":"F139","v":0}]
[]
[]
[]
[]
[]
[null,{"$f":"TODAY()","v":"2024-03-12"},null,null,null,null,null,{"$f":"Info!$B$4","v":"Nama Kabupaten/Kota"},{"$f":"IF(Info!D4=\"\",\"\",Info!D4)","v":""},null,{"$f":"Info!$B$6","v":"Negara"},{"$f":"IF(Info!D6=\"\",\"\",Info!D6)","v":""}]
[]
[]
[]
[]
[null,null,"Label","Name",null,"Essential","TotalScore","MaxScore","Label"]
[null,null,"E1",{"$f":"'E01'!I3","v":"Pengaturan Resiliensi - Keinklusifan penyandang disabilitas dalam tata kelola risiko bencana"},null,"E1",{"$f":"SUMIFS($F$121:$F$997,$B$121:$B$997,F109)","v":0},{"$f":"COUNTIFS($B$121:$B$997,F109)*3","v":6},"01",null,{"$f":"SUM(G109:G118)","v":0},{"$f":"K109/K110","v":0},{"$f":"CONCATENATE(\"The overall score for this assessment is \",SUM(G109:G118),\" / \",SUM(H109:H118))","v":"The overall score for this assessment is 0 / 57"}]
[null,null,"E2",{"$f":"'E02'!I3","v":"Pengidentifikasian, Pemahaman, dan Penggunaan Skenario Risiko Masa Kini dan Masa Depan - Inklusif penyandang disabilitas dalam skenario risiko bencana"},null,"E2",0,{"$f":"COUNTIFS($B$121:$B$997,F110)*3","v":6},"02",null,{"$f":"SUM(H109:H118)","v":57},{"$f":"1-L109","v":1}]
[null,null,"E3",{"$f":"'E03'!I3","v":"Penguatan Kapasitas Finansial untuk Resiliensi - Inklusif penyandang disabilitas dalam mekanisme finansial"},null,"E3",0,3,"03"]
[null,null,"E4",{"$f":"'E04'!I3","v":"Mengejar Pembangunan Perkotaan yang Tangguh - Keinklusifan penyandang disabilitas dalam peraturan penggunaan lahan/bangunan"},null,"E4",0,12,"04"]
[null,null,"E5",{"$f":"'E05'!I3","v":"Penyangga Keamanan Alami untuk Meningkatkan Fungsi Perlindungan yang Ditawarkan oleh Ekosistem Alam - Pengelolaan jasa ekosistem dengan mempertimbangkan penyandang disabilitas"},null,"E5",0,0,"05"]
[null,null,"E6",{"$f":"'E06'!I3","v":"Penguatan Kapasitas Lembaga untuk Resiliensi - Inklusif penyandang disabilitas dalam kapasitas kelembagaan"},null,"E6",0,6,"06",null,null,"V"]
[null,null,"E7",{"$f":"'E07'!I3","v":"Pemahaman dan Penguatan Kapasitas Sosial untuk Resiliensi - Inklusif penyandang disabilitas dalam kapasitas masyarakat"},null,"E7",0,6,"07"]
[null,null,"E8",{"$f":"'E08'!I3","v":"Penguatan Resiliensi Infrastuktur - Inklusif penyandang disabilitas dalam resiliensi infrastruktur"},null,"E8",0,3,"08"]
[null,null,"E9",{"$f":"'E09'!I3","v":"Memastikan Tanggap Bencana yang Efektif - Inklusif penyandang disabilitas dalam tanggap atau respons bencana"},null,"E9",0,9,"09"]
[null,null,"E10",{"$f":"'E10'!I3","v":"Percepatan Pemulihan dan Pembangunan Kembali yang Lebih Baik - Inklusif penyandang disabilitas dalam pemulihan atau pembangunan kembali dengan lebih baik"},null,"E10",0,6,"10"]
[]
[null,"Section","Ref",null,"Question","SelectedScore","ThisScore"]
[null,"E1",{"$f":"'E01'!G$5","v":"Q 1.1"},null,{"$f":"'E01'!I$5","v":"Tidak Meninggalkan Siapa pun"},{"$f":"IF(G121=\"\",0,IF(G121=0,0,4-G121))","v":0},{"$f":"OFFSET('E01'!$E$1,MATCH(C121,'E01'!G:G,0)+3,0)","v":0},null,"Remarks: "]
[null,"E1",{"$f":"'E01'!G$16","v":"Q 1.2"},null,{"$f":"'E01'!I$16","v":"Organisasi, Koordinasi, dan Partisipasi"},0,{"$f":"OFFSET('E01'!$E$1,MATCH(C122,'E01'!G:G,0)+3,0)","v":0},null,"- On this page, firstly fix from Row 126 downward to reflect all questions in this Scorecard"]
[null,"E2",{"$f":"'E02'!G$5","v":"Q 2.1"},null,{"$f":"'E02'!I$5","v":"Desain Analisis dan Skenario Risiko Inklusif Disabilitas"},0,{"$f":"OFFSET('E02'!$E$1,MATCH(C123,'E02'!G:G,0)+3,0)","v":0},null,"- Column G from G127 downward, must double check the formula.  (Formula = offset(reference, rows, cols, [height],[width])"]
[null,"E2",{"$f":"'E02'!G$16","v":"Q 2.2"},null,{"$f":"'E02'!I$16","v":"Efek Bertingkat"},0,{"$f":"OFFSET('E02'!$E$1,MATCH(C124,'E02'!G:G,0)+3,0)","v":0},null,"- Column F from F127 downward, must adjust the formula. If the scoring bar is between 0-3, use \"4\"; if the scoring is between 0-5, use \"6\""]
[null,"E3",{"$f":"'E03'!G$5","v":"Q 3.1"},null,{"$f":"'E03'!I$5","v":"Mekanisme Finansial Inklusif"},0,{"$f":"OFFSET('E03'!$E$1,MATCH(C125,'E03'!G:G,0)+3,0)","v":0},null,"E.G., =IF(G127=\"\",0,IF(G127=0,0,4-G127)) is for 0-3 scoring bar"]
[null,"E4",{"$f":"'E04'!G$5","v":"Q 4.1"},null,{"$f":"'E04'!I$5","v":"Desain Kota Resiliensi yang Inklusif"},0,{"$f":"OFFSET('E04'!$E$1,MATCH(C126,'E04'!G:G,0)+3,0)","v":0},null,"E.G., =IF(G127=\"\",0,IF(G127=0,0,6-G127)) is for 0-5 scoring bar"]
[null,"E4",{"$f":"'E04'!G$16","v":"Q 4.2"},null,{"$f":"'E04'!I$16","v":"Kode dan Standar Bangunan"},0,{"$f":"OFFSET('E04'!$E$1,MATCH(C127,'E04'!G:G,0)+3,0)","v":0}]
[null,"E4",{"$f":"'E04'!G$27","v":"Q 4.3"},null,{"$f":"'E04'!I$27","v":"Kode dan Standar Bangunan"},0,{"$f":"OFFSET('E04'!$E$1,MATCH(C128,'E04'!G:G,0)+3,0)","v":0},null,"-Then, work on Row 114 - 123"]
[null,"E4",{"$f":"'E04'!G$38","v":"Q 4.4"},null,{"$f":"'E04'!I$38","v":"Menghapus Penghalang Lingkungan"},0,{"$f":"OFFSET('E04'!$E$1,MATCH(C129,'E04'!G:G,0)+3,0)","v":0},null,"- Check Column D (D114:D123) for the Essential titles"]
[null,"E6",{"$f":"'E06'!G$5","v":"Q 6.1"},null,{"$f":"'E06'!I$5","v":"Peningkatan Kapasitas dan Inklusif untuk Resiliensi"},0,{"$f":"OFFSET('E06'!$E$1,MATCH(C130,'E06'!G:G,0)+3,0)","v":0},null,"- Check Column G (G114:G123).  The formular should not need fixing. (=SUMIFS($F$126:$F$1002,$B$126:$B$1002,F114)"]
[null,"E6",{"$f":"'E06'!G$16","v":"Q 6.2"},null,{"$f":"'E06'!I$16","v":"Bahasa yang Dapat Diakses"},0,{"$f":"OFFSET('E06'!$E$1,MATCH(C131,'E06'!G:G,0)+3,0)","v":0},null,"- Check Column H (H114:H123) Maximum Score"]
[null,"E7",{"$f":"'E07'!G$5","v":"Q 7.1"},null,{"$f":"'E07'!I$5","v":"Partisipasi Aktif Organisasi terhadap Penyandang Disabilitas"},0,{"$f":"OFFSET('E07'!$E$1,MATCH(C132,'E07'!G:G,0)+3,0)","v":0},null,"- Use formular =COUNTIFS($B$126:$B$1002,F114)*3, if scoring bar is 0-3"]
[null,"E7",{"$f":"'E07'!G$16","v":"Q 7.2"},null,{"$f":"'E07'!I$16","v":"Peningkatan Kapasitas Dari dan Untuk Organisasi Penyandang Disabilitas"},0,{"$f":"OFFSET('E07'!$E$1,MATCH(C133,'E07'!G:G,0)+3,0)","v":0},null,"- Use formular =COUNTIFS($B$126:$B$1002,F114)*5, if scoring bar is 0-5"]
[null,"E8",{"$f":"'E08'!G$5","v":"Q 8.1"},null,{"$f":"'E08'!I$5","v":"Perlindungan dari Kekerasan"},0,{"$f":"OFFSET('E08'!$E$1,MATCH(C134,'E08'!G:G,0)+3,0)","v":0}]
[null,"E9",{"$f":"'E09'!G$5","v":"Q 9.1"},null,{"$f":"'E09'!I$5","v":"Pendeteksian, Pemantauan, dan Peringatan Dini"},0,{"$f":"OFFSET('E09'!$E$1,MATCH(C135,'E09'!G:G,0)+3,0)","v":0},null,"- Then adjust the result display area above"]
[null,"E9",{"$f":"'E09'!G$16","v":"Q 9.2"},null,{"$f":"'E09'!I$16","v":"Pelatihan"},0,{"$f":"OFFSET('E09'!$E$1,MATCH(C136,'E09'!G:G,0)+3,0)","v":0},null,"- Fix the list of indicators"]
[null,"E9",{"$f":"'E09'!G$27","v":"Q 9.3"},null,{"$f":"'E09'!I$27","v":"Pengkampanyean Kesadaran dan Pelatihan Multi-Skenario"},0,{"$f":"OFFSET('E09'!$E$1,MATCH(C137,'E09'!G:G,0)+3,0)","v":0},null,"- Apply appropriate chart types"]
[null,"E10",{"$f":"'E10'!G$5","v":"Q 10.1"},null,{"$f":"'E10'!I$5","v":"Rekonstruksi dan Rehabilitasi yang Inklusif"},0,{"$f":"OFFSET('E10'!$E$1,MATCH(C138,'E10'!G:G,0)+3,0)","v":0},null,"- Change chart's axis value (3 maximum for 0-3 scoring bar, and 5 maximum for 0-5 scoring bar)"]
[null,"E10",{"$f":"'E10'!G$16","v":"Q 10.2"},null,{"$f":"'E10'!I$16","v":"Kompilasi Pembelajaran"},0,{"$f":"OFFSET('E10'!$E$1,MATCH(C139,'E10'!G:G,0)+3,0)","v":0},null,"- Adjust the chart diaplay alignment across all essentials, etc."]
[null,null,null,null,null,null,null,null,"- View from 'Page Break Preview' and further adjust page layout to fit nicely in the print area"]
[]
[]
[null,null,null,null,null,null,null,null,"- Replace the title part, copyright year with launch year, check other texts, and the overall diagram (adjust axis value if needed)"]
[]
[null,null,null,null,null,null,null,null,"- Once done, change font color from Row 107 downward to white"]

{"sheet":"E01","index":3,"n_rows":38,"n_cols":9,"rows_kept":38,"cut":false,"hidden":false,"merged":[[19,2,22,3],[7,2,7,3],[8,2,11,3],[5,2,5,3],[6,2,6,3],[16,2,16,3],[17,2,17,3],[18,2,18,3]]}
[]
[]
[null,"E1 Pengaturan Resiliensi - Keinklusifan penyandang disabilitas dalam tata kelola risiko bencana",null,null,null,null,{"$f":"TRIM(LEFT(B3,3))","v":"E1"},null,{"$f":"TRIM(MID(B3,4,1000))","v":"Pengaturan Resiliensi - Keinklusifan penyandang disabilitas dalam tata kelola risiko bencana"}]
[]
[null,"Q 1.1 Tidak Meninggalkan Siapa pun",null,null,null,null,{"$f":"TRIM(LEFT(B5,6))","v":"Q 1.1"},null,{"$f":"TRIM(MID(B5,6,1000))","v":"Tidak Meninggalkan Siapa pun"}]
[null,"Pertanyaan","Komentar"]
[]
[null,"Jawaban","Sarana verifikasi (penjelasan dan pembuktian)"]
[null,null,null,null,null,{"$f":"IF($E$9=1,TRUE,FALSE)","v":false}]
[null,null,null,null,null,{"$f":"IF($E$9=2,TRUE,FALSE)","v":false}]
[null,null,null,null,null,{"$f":"IF($E$9=3,TRUE,FALSE)","v":false}]
[null,null,null,null,null,{"$f":"IF($E$9=4,TRUE,FALSE)","v":false}]
[null,"Tindakan untuk mendorong keinklusifan penyandang disabilitas","Entitas yang bertanggung jawab","Alokasi waktu"]
["`"]
[]
[null,"Q 1.2 Organisasi, Koordinasi, dan Partisipasi",null,null,null,null,{"$f":"TRIM(LEFT(B16,6))","v":"Q 1.2"},null,{"$f":"TRIM(MID(B16,6,1000))","v":"Organisasi, Koordinasi, dan Partisipasi"}]
[null,"Pertanyaan","Komentar"]
[]
[null,"Jawaban","Sarana verifikasi (penjelasan dan pembuktian)"]
[null,null,null,null,null,{"$f":"IF($E$20=1,TRUE,FALSE)","v":false}]
[null,null,null,null,null,{"$f":"IF($E$20=2,TRUE,FALSE)","v":false}]
[null,null,null,null,null,{"$f":"IF($E$20=3,TRUE,FALSE)","v":false}]
[null,null,null,null,null,{"$f":"IF($E$20=4,TRUE,FALSE)","v":false}]
[null,"Tindakan untuk mendorong keinklusifan penyandang disabilitas","Entitas yang bertanggung jawab","Alokasi waktu"]
[]
[]
[null,null,null,null,null,null,{"$f":"LEFT(B27,5)","v":""}]
[]
[]
[]
[]
[]
[]
[]
[]
[]
[]
[null,null,null,null,null,null,{"$f":"LEFT(B38,5)","v":""}]

{"sheet":"E02","index":4,"n_rows":38,"n_cols":9,"rows_kept":38,"cut":false,"hidden":false,"merged":[[18,2,18,3],[8,2,11,3],[19,2,22,3],[5,2,5,3],[6,2,6,3],[7,2,7,3],[16,2,16,3],[17,2,17,3]]}
[]
[]
[null,"E2 Pengidentifikasian, Pemahaman, dan Penggunaan Skenario Risiko Masa Kini dan Masa Depan - Inklusif penyandang disabilitas dalam skenario risiko bencana",null,null,null,null,{"$f":"TRIM(LEFT(B3,3))","v":"E2"},null,{"$f":"TRIM(MID(B3,4,1000))","v":"Pengidentifikasian, Pemahaman, dan Penggunaan Skenario Risiko Masa Kini dan Masa Depan - Inklusif penyandang disabilitas dalam skenario risiko bencana"}]
[]
[null,"Q 2.1 Desain Analisis dan Skenario Risiko Inklusif Disabilitas",null,null,null,null,{"$f":"TRIM(LEFT(B5,6))","v":"Q 2.1"},null,{"$f":"TRIM(MID(B5,6,1000))","v":"Desain Analisis dan Skenario Risiko Inklusif Disabilitas"}]
[null,"Pertanyaan","Komentar"]
[]
[null,"Jawaban","Sarana verifikasi (penjelasan dan pembuktian)"]
[null,null,null,null,null,{"$f":"IF($E$9=1,TRUE,FALSE)","v":false}]
[null,null,null,null,null,{"$f":"IF($E$9=2,TRUE,FALSE)","v":false}]
[null,null,null,null,null,{"$f":"IF($E$9=3,TRUE,FALSE)","v":false}]
[null,null,null,null,null,{"$f":"IF($E$9=4,TRUE,FALSE)","v":false}]
[null,"Tindakan untuk mendorong keinklusifan penyandang disabilitas","Entitas yang bertanggung jawab","Alokasi waktu"]
[]
[]
[null,"Q 2.2 Efek Bertingkat",null,null,null,null,{"$f":"TRIM(LEFT(B16,6))","v":"Q 2.2"},null,{"$f":"TRIM(MID(B16,6,1000))","v":"Efek Bertingkat"}]
[null,"Pertanyaan","Komentar"]
[]
[null,"Jawaban","Sarana verifikasi (penjelasan dan pembuktian)"]
[null,null,null,null,null,{"$f":"IF($E$20=1,TRUE,FALSE)","v":false}]
[null,null,null,null,null,{"$f":"IF(E20=2,TRUE,FALSE)","v":false}]
[null,null,null,null,null,{"$f":"IF(E20=3,TRUE,FALSE)","v":false}]
[null,null,null,null,null,{"$f":"IF(E20=4,TRUE,FALSE)","v":false}]
[null,"Tindakan untuk mendorong keinklusifan penyandang disabilitas","Entitas yang bertanggung jawab","Alokasi waktu"]
[]
[]
[null,null,null,null,null,null,{"$f":"LEFT(B27,5)","v":""}]
[]
[]
[]
[]
[]
[]
[]
[]
[]
[]
[null,null,null,null,null,null,{"$f":"LEFT(B38,5)","v":""}]

{"sheet":"E03","index":5,"n_rows":38,"n_cols":9,"rows_kept":38,"cut":false,"hidden":false,"merged":[[4,1,4,3],[5,2,5,3],[6,2,6,3],[7,2,7,3],[8,2,11,3]]}
[]
[]
[null,"E3 Penguatan Kapasitas Finansial untuk Resiliensi - Inklusif penyandang disabilitas dalam mekanisme finansial",null,null,null,null,{"$f":"TRIM(LEFT(B3,3))","v":"E3"},null,{"$f":"TRIM(MID(B3,4,1000))","v":"Penguatan Kapasitas Finansial untuk Resiliensi - Inklusif penyandang disabilitas dalam mekanisme finansial"}]
[]
[null,"Q 3.1 Mekanisme Finansial Inklusif",null,null,null,null,{"$f":"TRIM(LEFT(B5,6))","v":"Q 3.1"},null,{"$f":"TRIM(MID(B5,6,1000))","v":"Mekanisme Finansial Inklusif"}]
[null,"Pertanyaan","Komentar"]
[]
[null,"Jawaban","Sarana verifikasi (penjelasan dan pembuktian)"]
[null,null,null,null,null,{"$f":"IF($E$9=1,TRUE,FALSE)","v":false}]
[null,null,null,null,null,{"$f":"IF($E$9=2,TRUE,FALSE)","v":false}]
[null,null,null,null,null,{"$f":"IF($E$9=3,TRUE,FALSE)","v":false}]
[null,null,null,null,null,{"$f":"IF($E$9=4,TRUE,FALSE)","v":false}]
[null,"Tindakan untuk mendorong keinklusifan penyandang disabilitas","Entitas yang bertanggung jawab","Alokasi waktu"]
[]
[]
[null,null,null,null,null,null,{"$f":"TRIM(LEFT(B16,6))","v":""}]
[]
[]
[]
[]
[]
[]
[]
[]
[]
[]
[null,null,null,null,null,null,{"$f":"LEFT(B27,5)","v":""}]
[]
[]
[]
[]
[]
[]
[]
[]
[]
[]
[null,null,null,null,null,null,{"$f":"LEFT(B38,5)","v":""}]

{"sheet":"E04","index":6,"n_rows":46,"n_cols":9,"rows_kept":46,"cut":false,"hidden":false,"merged":[[37,1,37,3],[38,2,38,3],[39,2,39,3],[40,2,40,3],[41,2,44,3],[28,2,28,3],[29,2,29,3],[30,2,33,3],[4,1,4,3],[5,2,5,3],[8,2,11,3],[6,2,6,3],[7,2,7,3],[15,1,15,3],[16,2,16,3],[17,2,17,3],[18,2,18,3],[19,2,21,3],[26,1,26,3],[27,2,27,3]]}
[]
[]
[null,"E4 Mengejar Pembangunan Perkotaan yang Tangguh - Keinklusifan penyandang disabilitas dalam peraturan penggunaan lahan/bangunan",null,null,null,null,{"$f":"TRIM(LEFT(B3,3))","v":"E4"},null,{"$f":"TRIM(MID(B3,4,500))","v":"Mengejar Pembangunan Perkotaan yang Tangguh - Keinklusifan penyandang disabilitas dalam peraturan penggunaan lahan/bangunan"}]
[]
[null,"Q 4.1 Desain Kota Resiliensi yang Inklusif",null,null,null,null,{"$f":"TRIM(LEFT(B5,6))","v":"Q 4.1"},null,{"$f":"TRIM(MID(B5,6,1000))","v":"Desain Kota Resiliensi yang Inklusif"}]
[null,"Pertanyaan","Komentar"]
[]
[null,"Jawaban","Sarana verifikasi (penjelasan dan pembuktian)"]
[null,null,null,null,null,{"$f":"IF(E9=1,TRUE,FALSE)","v":false}]
[null,null,null,null,null,{"$f":"IF(E9=2,TRUE,FALSE)","v":false}]
[null,null,null,null,null,{"$f":"IF(E9=3,TRUE,FALSE)","v":false}]
[null,null,null,null,null,{"$f":"IF(E9=4,TRUE,FALSE)","v":false}]
[null,"Tindakan untuk mendorong keinklusifan penyandang disabilitas","Entitas yang bertanggung jawab","Alokasi waktu"]
[]
[]
[null,"Q 4.2 Kode dan Standar Bangunan",null,null,null,null,{"$f":"TRIM(LEFT(B16,6))","v":"Q 4.2"},null,{"$f":"TRIM(MID(B16,6,1000))","v":"Kode dan Standar Bangunan"}]
[null,"Pertanyaan","Komentar"]
[]
[null,"Jawaban","Sarana verifikasi (penjelasan dan pembuktian)"]
[null,null,null,null,null,{"$f":"IF($E$20=1,TRUE,FALSE)","v":false}]
[null,null,null,null,null,{"$f":"IF($E$20=2,TRUE,FALSE)","v":false}]
[null,null,null,null,null,{"$f":"IF($E$20=3,TRUE,FALSE)","v":false}]
[null,null,null,null,null,{"$f":"IF($E$20=4,TRUE,FALSE)","v":false}]
[null,"Tindakan untuk mendorong keinklusifan penyandang disabilitas","Entitas yang bertanggung jawab","Alokasi waktu"]
[]
[]
[null,"Q 4.3 Kode dan Standar Bangunan",null,null,null,null,{"$f":"LEFT(B27,5)","v":"Q 4.3"},null,{"$f":"TRIM(MID(B27,6,120))","v":"Kode dan Standar Bangunan"}]
[null,"Pertanyaan","Komentar"]
[]
[null,"Jawaban","Sarana verifikasi (penjelasan dan pembuktian)"]
[null,null,null,null,null,{"$f":"IF($E$31=1,TRUE,FALSE)","v":false}]
[null,null,null,null,null,{"$f":"IF($E$31=2,TRUE,FALSE)","v":false}]
[null,null,null,null,null,{"$f":"IF($E$31=3,TRUE,FALSE)","v":false}]
[null,null,null,null,null,{"$f":"IF($E$31=4,TRUE,FALSE)","v":false}]
[null,"Tindakan untuk mendorong keinklusifan penyandang disabilitas","Entitas yang bertanggung jawab","Alokasi waktu"]
[]
[]
[" ","Q 4.4 Menghapus Penghalang Lingkungan",null,null,null,null,{"$f":"LEFT(B38,5)","v":"Q 4.4"},null,{"$f":"TRIM(MID(B38,6,120))","v":"Menghapus Penghalang Lingkungan"}]
[null,"Pertanyaan","Komentar"]
[]
[null,"Jawaban","Sarana verifikasi (penjelasan dan pembuktian)"]
[null,null,null,null,null,{"$f":"IF(E42=1,TRUE,FALSE)","v":false}]
[null,null,null,null,null,{"$f":"IF(E42=2,TRUE,FALSE)","v":false}]
[null,null,null,null,null,{"$f":"IF(E42=3,TRUE,FALSE)","v":false}]
[null,null,null,null,null,{"$f":"IF(E42=4,TRUE,FALSE)","v":false}]
[null,"Tindakan untuk mendorong keinklusifan penyandang disabilitas","Entitas yang bertanggung jawab","Alokasi waktu"]

{"sheet":"E05","index":7,"n_rows":3,"n_cols":9,"rows_kept":3,"cut":false,"hidden":false,"merged":[]}
[]
[]
[null,"E5 Penyangga Keamanan Alami untuk Meningkatkan Fungsi Perlindungan yang Ditawarkan oleh Ekosistem Alam - Pengelolaan jasa ekosistem dengan mempertimbangkan penyandang disabilitas",null,null,null,null,null,null,{"$f":"TRIM(MID(B3,4,500))","v":"Penyangga Keamanan Alami untuk Meningkatkan Fungsi Perlindungan yang Ditawarkan oleh Ekosistem Alam - Pengelolaan jasa ekosistem dengan mempertimbangkan penyandang disabilitas"}]

{"sheet":"E06","index":8,"n_rows":38,"n_cols":9,"rows_kept":38,"cut":false,"hidden":false,"merged":[[19,2,22,3],[15,1,15,3],[16,2,16,3],[17,2,17,3],[18,2,18,3],[4,1,4,3],[5,2,5,3],[6,2,6,3],[7,2,7,3],[8,2,11,3]]}
[]
[]
[null,"E6 Penguatan Kapasitas Lembaga untuk Resiliensi - Inklusif penyandang disabilitas dalam kapasitas kelembagaan",null,null,null,null,{"$f":"TRIM(LEFT(B3,3))","v":"E6"},null,{"$f":"TRIM(MID(B3,4,1000))","v":"Penguatan Kapasitas Lembaga untuk Resiliensi - Inklusif penyandang disabilitas dalam kapasitas kelembagaan"}]
[]
[null,"Q 6.1 Peningkatan Kapasitas dan Inklusif untuk Resiliensi",null,null,null,null,{"$f":"TRIM(LEFT(B5,6))","v":"Q 6.1"},null,{"$f":"TRIM(MID(B5,6,5000))","v":"Peningkatan Kapasitas dan Inklusif untuk Resiliensi"}]
[null,"Pertanyaan","Komentar"]
[]
[null,"Jawaban","Sarana verifikasi (penjelasan dan pembuktian)"]
[null,null,null,null,null,{"$f":"IF(E9=1,TRUE,FALSE)","v":false}]
[null,null,null,null,null,{"$f":"IF(E9=2,TRUE,FALSE)","v":false}]
[null,null,null,null,null,{"$f":"IF(E9=3,TRUE,FALSE)","v":false}]
[null,null,null,null,null,{"$f":"IF(E9=4,TRUE,FALSE)","v":false}]
[null,"Tindakan untuk mendorong keinklusifan penyandang disabilitas","Entitas yang bertanggung jawab","Alokasi waktu"]
[]
[]
[null,"Q 6.2 Bahasa yang Dapat Diakses",null,null,null,null,{"$f":"TRIM(LEFT(B16,6))","v":"Q 6.2"},null,{"$f":"TRIM(MID(B16,6,1000))","v":"Bahasa yang Dapat Diakses"}]
[null,"Pertanyaan","Komentar"]
[]
[null,"Jawaban","Sarana verifikasi (penjelasan dan pembuktian)"]
[null,null,null,null,null,{"$f":"IF(E20=1,TRUE,FALSE)","v":false}]
[null,null,null,null,null,{"$f":"IF(E20=2,TRUE,FALSE)","v":false}]
[null,null,null,null,null,{"$f":"IF(E20=3,TRUE,FALSE)","v":false}]
[null,null,null,null,null,{"$f":"IF(E20=4,TRUE,FALSE)","v":false}]
[null,"Tindakan untuk mendorong keinklusifan penyandang disabilitas","Entitas yang bertanggung jawab","Alokasi waktu"]
[]
[]
[null,null,null,null,null,null,{"$f":"LEFT(B27,5)","v":""},null,{"$f":"TRIM(MID(B27,6,120))","v":""}]
[]
[]
[]
[]
[]
[]
[]
[]
[]
[]
[null,null,null,null,null,null,{"$f":"LEFT(B38,5)","v":""},null,{"$f":"TRIM(MID(B38,6,120))","v":""}]

{"sheet":"E07","index":9,"n_rows":38,"n_cols":9,"rows_kept":38,"cut":false,"hidden":false,"merged":[[16,2,16,3],[8,2,11,3],[19,2,22,3],[17,2,17,3],[18,2,18,3],[4,1,4,3],[5,2,5,3],[6,2,6,3],[7,2,7,3],[15,1,15,3]]}
[]
[]
[null,"E7 Pemahaman dan Penguatan Kapasitas Sosial untuk Resiliensi - Inklusif penyandang disabilitas dalam kapasitas masyarakat",null,null,null,null,{"$f":"TRIM(LEFT(B3,3))","v":"E7"},null,{"$f":"TRIM(MID(B3,4,1000))","v":"Pemahaman dan Penguatan Kapasitas Sosial untuk Resiliensi - Inklusif penyandang disabilitas dalam kapasitas masyarakat"}]
[]
[null,"Q 7.1 Partisipasi Aktif Organisasi terhadap Penyandang Disabilitas",null,null,null,null,{"$f":"TRIM(LEFT(B5,6))","v":"Q 7.1"},null,{"$f":"TRIM(MID(B5,6,500))","v":"Partisipasi Aktif Organisasi terhadap Penyandang Disabilitas"}]
[null,"Pertanyaan","Komentar"]
[]
[null,"Jawaban","Sarana verifikasi (penjelasan dan pembuktian)"]
[null,null,null,null,null,{"$f":"IF(E9=1,TRUE,FALSE)","v":false}]
[null,null,null,null,null,{"$f":"IF(E9=2,TRUE,FALSE)","v":false}]
[null,null,null,null,null,{"$f":"IF(E9=3,TRUE,FALSE)","v":false}]
[null,null,null,null,null,{"$f":"IF(E9=4,TRUE,FALSE)","v":false}]
[null,"Tindakan untuk mendorong keinklusifan penyandang disabilitas","Entitas yang bertanggung jawab","Alokasi waktu"]
[]
[]
[null,"Q 7.2 Peningkatan Kapasitas Dari dan Untuk Organisasi Penyandang Disabilitas",null,null,null,null,{"$f":"TRIM(LEFT(B16,6))","v":"Q 7.2"},null,{"$f":"TRIM(MID(B16,6,500))","v":"Peningkatan Kapasitas Dari dan Untuk Organisasi Penyandang Disabilitas"}]
[null,"Pertanyaan","Komentar"]
[]
[null,"Jawaban","Sarana verifikasi (penjelasan dan pembuktian)"]
[null,null,null,null,null,{"$f":"IF(E20=1,TRUE,FALSE)","v":false}]
[null,null,null,null,null,{"$f":"IF(E20=2,TRUE,FALSE)","v":false}]
[null,null,null,null,null,{"$f":"IF(E20=3,TRUE,FALSE)","v":false}]
[null,null,null,null,null,{"$f":"IF(E20=4,TRUE,FALSE)","v":false}]
[null,"Tindakan untuk mendorong keinklusifan penyandang disabilitas","Entitas yang bertanggung jawab","Alokasi waktu"]
[]
[]
[null,null,null,null,null,null,{"$f":"LEFT(B27,5)","v":""},null,{"$f":"TRIM(MID(B27,6,120))","v":""}]
[]
[]
[]
[]
[]
[]
[]
[]
[]
[]
[null,null,null,null,null,null,{"$f":"LEFT(B38,5)","v":""},null,{"$f":"TRIM(MID(B38,6,120))","v":""}]

{"sheet":"E08","index":10,"n_rows":38,"n_cols":10,"rows_kept":38,"cut":false,"hidden":false,"merged":[[8,2,11,3],[4,1,4,3],[5,2,5,3],[6,2,6,3],[7,2,7,3]]}
[]
[]
[null,"E8 Penguatan Resiliensi Infrastuktur - Inklusif penyandang disabilitas dalam resiliensi infrastruktur",null,null,null,null,{"$f":"TRIM(LEFT(B3,3))","v":"E8"},null,{"$f":"TRIM(MID(B3,4,1000))","v":"Penguatan Resiliensi Infrastuktur - Inklusif penyandang disabilitas dalam resiliensi infrastruktur"}]
[]
[null,"Q 8.1 Perlindungan dari Kekerasan",null,null,null,null,{"$f":"TRIM(LEFT(B5,6))","v":"Q 8.1"},null,{"$f":"TRIM(MID(B5,6,1000))","v":"Perlindungan dari Kekerasan"}]
[null,"Pertanyaan","Komentar"]
[]
[null,"Jawaban","Sarana verifikasi (penjelasan dan pembuktian)"]
[null,null,null,null,null,{"$f":"IF(E9=1,TRUE,FALSE)","v":false}]
[null,null,null,null,null,{"$f":"IF(E9=2,TRUE,FALSE)","v":false}]
[null,null,null,null,null,{"$f":"IF(E9=3,TRUE,FALSE)","v":false}]
[null,null,null,null,null,{"$f":"IF(E9=4,TRUE,FALSE)","v":false}]
[null,"Tindakan untuk mendorong keinklusifan penyandang disabilitas","Entitas yang bertanggung jawab","Alokasi waktu"]
[]
[]
[null,null,null,null,null,null,{"$f":"TRIM(LEFT(B16,6))","v":""},null,{"$f":"TRIM(MID(B16,6,120))","v":""},{"$f":"TRIM(MID(C16,6,120))","v":""}]
[]
[]
[]
[]
[]
[]
[]
[]
[]
[]
[null,null,null,null,null,null,{"$f":"LEFT(B27,5)","v":""},null,{"$f":"TRIM(MID(B27,6,120))","v":""},{"$f":"TRIM(MID(C27,6,120))","v":""}]
[]
[]
[]
[]
[]
[]
[]
[]
[]
[]
[null,null,null,null,null,null,{"$f":"LEFT(B38,5)","v":""},null,{"$f":"TRIM(MID(B38,6,120))","v":""},{"$f":"TRIM(MID(C38,6,120))","v":""}]

{"sheet":"E09","index":11,"n_rows":38,"n_cols":9,"rows_kept":38,"cut":false,"hidden":false,"merged":[[17,2,17,3],[18,2,18,3],[4,1,4,3],[5,2,5,3],[6,2,6,3],[7,2,7,3],[15,1,15,3],[16,2,16,3],[8,2,11,3],[30,2,33,3],[19,2,22,3],[26,1,26,3],[27,2,27,3],[28,2,28,3],[29,2,29,3]]}
[]
[]
[null,"E9 Memastikan Tanggap Bencana yang Efektif - Inklusif penyandang disabilitas dalam tanggap atau respons bencana",null,null,null,null,{"$f":"TRIM(LEFT(B3,3))","v":"E9"},null,{"$f":"TRIM(MID(B3,4,1000))","v":"Memastikan Tanggap Bencana yang Efektif - Inklusif penyandang disabilitas dalam tanggap atau respons bencana"}]
[]
[null,"Q 9.1 Pendeteksian, Pemantauan, dan Peringatan Dini",null,null,null,null,{"$f":"TRIM(LEFT(B5,6))","v":"Q 9.1"},null,{"$f":"TRIM(MID(B5,6,500))","v":"Pendeteksian, Pemantauan, dan Peringatan Dini"}]
[null,"Pertanyaan","Komentar"]
[]
[null,"Jawaban","Sarana verifikasi (penjelasan dan pembuktian)"]
[null,null,null,null,null,{"$f":"IF(E9=1,TRUE,FALSE)","v":false}]
[null,null,null,null,null,{"$f":"IF(E9=2,TRUE,FALSE)","v":false}]
[null,null,null,null,null,{"$f":"IF(E9=3,TRUE,FALSE)","v":false}]
[null,null,null,null,null,{"$f":"IF(E9=4,TRUE,FALSE)","v":false}]
[null,"Tindakan untuk mendorong keinklusifan penyandang disabilitas","Entitas yang bertanggung jawab","Alokasi waktu"]
[]
[]
[null,"Q 9.2 Pelatihan",null,null,null,null,{"$f":"TRIM(LEFT(B16,6))","v":"Q 9.2"},null,{"$f":"TRIM(MID(B16,6,500))","v":"Pelatihan"}]
[null,"Pertanyaan","Komentar"]
[]
[null,"Jawaban","Sarana verifikasi (penjelasan dan pembuktian)"]
[null,null,null,null,null,{"$f":"IF(E20=1,TRUE,FALSE)","v":false}]
[null,null,null,null,null,{"$f":"IF(E20=2,TRUE,FALSE)","v":false}]
[null,null,null,null,null,{"$f":"IF(E20=3,TRUE,FALSE)","v":false}]
[null,null,null,null,null,{"$f":"IF(E20=4,TRUE,FALSE)","v":false}]
[null,"Tindakan untuk mendorong keinklusifan penyandang disabilitas","Entitas yang bertanggung jawab","Alokasi waktu"]
[]
[]
[null,"Q 9.3 Pengkampanyean Kesadaran dan Pelatihan Multi-Skenario",null,null,null,null,{"$f":"LEFT(B27,5)","v":"Q 9.3"},null,{"$f":"TRIM(MID(B27,6,120))","v":"Pengkampanyean Kesadaran dan Pelatihan Multi-Skenario"}]
[null,"Pertanyaan","Komentar"]
[]
[null,"Jawaban","Sarana verifikasi (penjelasan dan pembuktian)"]
[null,null,null,null,null,{"$f":"IF(E31=1,TRUE,FALSE)","v":false}]
[null,null,null,null,null,{"$f":"IF(E31=2,TRUE,FALSE)","v":false}]
[null,null,null,null,null,{"$f":"IF(E31=3,TRUE,FALSE)","v":false}]
[null,null,null,null,null,{"$f":"IF(E31=4,TRUE,FALSE)","v":false}]
[null,"Tindakan untuk mendorong keinklusifan penyandang disabilitas","Entitas yang bertanggung jawab","Alokasi waktu"]
[]
[]
[null,null,null,null,null,null,{"$f":"LEFT(B38,5)","v":""},null,{"$f":"TRIM(MID(B38,6,120))","v":""}]

{"sheet":"E10","index":12,"n_rows":38,"n_cols":9,"rows_kept":38,"cut":false,"hidden":false,"merged":[[16,2,16,3],[17,2,17,3],[18,2,18,3],[19,2,22,3],[4,1,4,3],[5,2,5,3],[6,2,6,3],[7,2,7,3],[8,2,11,3],[15,1,15,3]]}
[]
[]
[null,"E10 Percepatan Pemulihan dan Pembangunan Kembali yang Lebih Baik - Inklusif penyandang disabilitas dalam pemulihan atau pembangunan kembali dengan lebih baik",null,null,null,null,{"$f":"TRIM(LEFT(B3,3))","v":"E10"},null,{"$f":"TRIM(MID(B3,4,1000))","v":"Percepatan Pemulihan dan Pembangunan Kembali yang Lebih Baik - Inklusif penyandang disabilitas dalam pemulihan atau pembangunan kembali dengan lebih baik"}]
[]
[null,"Q 10.1 Rekonstruksi dan Rehabilitasi yang Inklusif",null,null,null,null,{"$f":"TRIM(LEFT(B5,6))","v":"Q 10.1"},null,{"$f":"TRIM(MID(B5,8,500))","v":"Rekonstruksi dan Rehabilitasi yang Inklusif"}]
[null,"Pertanyaan","Komentar"]
[]
[null,"Jawaban","Sarana verifikasi (penjelasan dan pembuktian)"]
[null,null,null,null,null,{"$f":"IF(E9=1,TRUE,FALSE)","v":false}]
[null,null,null,null,null,{"$f":"IF(E9=2,TRUE,FALSE)","v":false}]
[null,null,null,null,null,{"$f":"IF(E9=3,TRUE,FALSE)","v":false}]
[null,null,null,null,null,{"$f":"IF(E9=4,TRUE,FALSE)","v":false}]
[null,"Tindakan untuk mendorong keinklusifan penyandang disabilitas","Entitas yang bertanggung jawab","Alokasi waktu"]
[]
[]
[null,"Q 10.2 Kompilasi Pembelajaran",null,null,null,null,{"$f":"TRIM(LEFT(B16,6))","v":"Q 10.2"},null,{"$f":"TRIM(MID(B16,8,500))","v":"Kompilasi Pembelajaran"}]
[null,"Pertanyaan","Komentar"]
[]
[null,"Jawaban","Sarana verifikasi (penjelasan dan pembuktian)"]
[null,null,null,null,null,{"$f":"IF(E20=1,TRUE,FALSE)","v":false}]
[null,null,null,null,null,{"$f":"IF(E20=2,TRUE,FALSE)","v":false}]
[null,null,null,null,null,{"$f":"IF(E20=3,TRUE,FALSE)","v":false}]
[null,null,null,null,null,{"$f":"IF(E20=4,TRUE,FALSE)","v":false}]
[null,"Tindakan untuk mendorong keinklusifan penyandang disabilitas","Entitas yang bertanggung jawab","Alokasi waktu"]
[]
[]
[null,null,null,null,null,null,{"$f":"LEFT(B27,5)","v":""},null,{"$f":"TRIM(MID(B27,6,120))","v":""}]
[]
[]
[]
[]
[]
[]
[]
[]
[]
[]
[null,null,null,null,null,null,{"$f":"LEFT(B38,5)","v":""},null,{"$f":"TRIM(MID(B38,6,120))","v":""}]

{"sheet":"About","index":13,"n_rows":0,"n_cols":0,"rows_kept":0,"cut":false,"hidden":false,"merged":[]}